[Event "*** Qualifier 2: Titled Tuesday 3|2 Blitz"]
[Site "Chess.com"]
[Date "2017.04.11"]
[Round "4"]
[White "rpragchess"]
[Black "Th3ChessViking"]
[Result "1-0"]
[WhiteElo "2223"]
[BlackElo "2271"]
[TimeControl "180+2"]
[EndTime "13:51:27 PDT"]
[Termination "rpragchess won on time"]

1. e4 {[%clk 0:03:00.2]} 1... e6 {[%clk 0:03:00.4]} 2. d4 {[%clk 0:03:00.4]}
2... d5 {[%clk 0:03:02.3]} 3. Nd2 {[%clk 0:03:01.5]} 3... Nf6 {[%clk 0:03:02.6]}
4. e5 {[%clk 0:03:02.1]} 4... Nfd7 {[%clk 0:03:04]} 5. Bd3 {[%clk 0:03:03]} 5...
c5 {[%clk 0:03:05.9]} 6. c3 {[%clk 0:03:03.6]} 6... Nc6 {[%clk 0:03:07.8]} 7.
Ngf3 {[%clk 0:03:04.3]} 7... g6 {[%clk 0:03:02.4]} 8. h4 {[%clk 0:03:03.7]} 8...
h6 {[%clk 0:03:01.6]} 9. Bc2 {[%clk 0:02:57]} 9... Bg7 {[%clk 0:03:00.1]} 10.
O-O {[%clk 0:02:55.4]} 10... O-O {[%clk 0:02:48.4]} 11. Qe2 {[%clk 0:02:55.8]}
11... f5 {[%clk 0:02:29.7]} 12. Rd1 {[%clk 0:02:30.1]} 12... b6 {[%clk
0:02:17.7]} 13. Nf1 {[%clk 0:02:20.1]} 13... a5 {[%clk 0:02:16.7]} 14. Bd3
{[%clk 0:02:19.2]} 14... Bb7 {[%clk 0:02:07.3]} 15. Ne3 {[%clk 0:02:15.9]} 15...
Qe7 {[%clk 0:02:06.3]} 16. g3 {[%clk 0:02:15.8]} 16... Rac8 {[%clk 0:02:01.7]}
17. a3 {[%clk 0:02:10.4]} 17... cxd4 {[%clk 0:01:59.5]} 18. cxd4 {[%clk
0:02:10.8]} 18... a4 {[%clk 0:01:59.5]} 19. Bd2 {[%clk 0:02:11.1]} 19... f4
{[%clk 0:01:52.5]} 20. Ng2 {[%clk 0:02:10.4]} 20... fxg3 {[%clk 0:01:50.2]} 21.
fxg3 {[%clk 0:02:11.9]} 21... Rxf3 {[%clk 0:01:45.8]} 22. Qxf3 {[%clk
0:02:09.8]} 22... Nxd4 {[%clk 0:01:47.7]} 23. Qe3 {[%clk 0:02:09.4]} 23... Nxe5
{[%clk 0:01:47.5]} 24. Rf1 {[%clk 0:02:09.6]} 24... Ng4 {[%clk 0:01:13.9]} 25.
Qe1 {[%clk 0:02:03.7]} 25... e5 {[%clk 0:01:14.4]} 26. Bxg6 {[%clk 0:01:54.1]}
26... e4 {[%clk 0:01:11.8]} 27. Rc1 {[%clk 0:01:54.9]} 27... Rf8 {[%clk
0:01:06.3]} 28. Nf4 {[%clk 0:01:52.5]} 28... Qd6 {[%clk 0:00:49.9]} 29. Bb4
{[%clk 0:01:42.9]} 29... Qe5 {[%clk 0:00:40.9]} 30. Bxf8 {[%clk 0:01:41.3]}
30... Bxf8 {[%clk 0:00:42.8]} 31. Nd3 {[%clk 0:00:58.3]} 31... exd3 {[%clk
0:00:29.2]} 32. Bxd3 {[%clk 0:00:46.5]} 32... Bc5 {[%clk 0:00:19.2]} 33. Kg2
{[%clk 0:00:45]} 33... Nb3 {[%clk 0:00:15.1]} 34. Qxe5 {[%clk 0:00:39.9]} 34...
Nxe5 {[%clk 0:00:17]} 35. Rcd1 {[%clk 0:00:38.8]} 35... Be3 {[%clk 0:00:17.2]}
36. g4 {[%clk 0:00:31.2]} 36... d4+ {[%clk 0:00:17.7]} 37. Kg3 {[%clk
0:00:32.1]} 37... Nd2 {[%clk 0:00:18.1]} 38. Rxd2 {[%clk 0:00:29]} 38... Bxd2
{[%clk 0:00:20]} 39. Bb5 {[%clk 0:00:29]} 39... Kg7 {[%clk 0:00:18.4]} 40. Bxa4
{[%clk 0:00:26.6]} 40... Be3 {[%clk 0:00:18.4]} 41. Bb5 {[%clk 0:00:27.5]} 41...
Bd5 {[%clk 0:00:16.1]} 42. Rf5 {[%clk 0:00:21.3]} 42... Nf7 {[%clk 0:00:13.6]}
43. Rxd5 {[%clk 0:00:22.1]} 1-0

[Event "*** Qualifier 2: Titled Tuesday 3|2 Blitz"]
[Site "Chess.com"]
[Date "2017.04.11"]
[Round "4"]
[White "talaicito"]
[Black "MFBerna"]
[Result "0-1"]
[WhiteElo "2027"]
[BlackElo "2125"]
[TimeControl "180+2"]
[EndTime "13:51:28 PDT"]
[Termination "MFBerna won on time"]

1. e4 {[%clk 0:03:02]} 1... e5 {[%clk 0:02:58.6]} 2. Nf3 {[%clk 0:03:02.3]} 2...
Nc6 {[%clk 0:02:56.8]} 3. Bb5 {[%clk 0:03:02.6]} 3... a6 {[%clk 0:02:56.7]} 4.
Ba4 {[%clk 0:03:02.9]} 4... Nf6 {[%clk 0:02:57.4]} 5. O-O {[%clk 0:03:04.2]}
5... Be7 {[%clk 0:02:58.7]} 6. Re1 {[%clk 0:03:03.1]} 6... b5 {[%clk 0:03:00.1]}
7. Bb3 {[%clk 0:03:03.7]} 7... O-O {[%clk 0:03:01.3]} 8. d3 {[%clk 0:03:03]}
8... d6 {[%clk 0:03:02.2]} 9. c3 {[%clk 0:03:03.5]} 9... Na5 {[%clk 0:03:03]}
10. Bc2 {[%clk 0:03:03.8]} 10... c5 {[%clk 0:03:04.4]} 11. Nbd2 {[%clk
0:03:04.1]} 11... Nc6 {[%clk 0:03:05.2]} 12. Nf1 {[%clk 0:03:02.4]} 12... h6
{[%clk 0:03:06.5]} 13. h3 {[%clk 0:03:00.8]} 13... Re8 {[%clk 0:03:07.3]} 14. a4
{[%clk 0:02:58.6]} 14... b4 {[%clk 0:03:06.2]} 15. Ne3 {[%clk 0:02:42.3]} 15...
Bf8 {[%clk 0:03:02.5]} 16. Bb3 {[%clk 0:02:20.5]} 16... g6 {[%clk 0:02:59.8]}
17. Nh2 {[%clk 0:02:03.9]} 17... Bg7 {[%clk 0:02:59]} 18. Nhg4 {[%clk
0:01:55.2]} 18... Nxg4 {[%clk 0:02:59.2]} 19. hxg4 {[%clk 0:01:55.6]} 19... Be6
{[%clk 0:02:51]} 20. Bxe6 {[%clk 0:01:43.7]} 20... fxe6 {[%clk 0:02:45.3]} 21.
f3 {[%clk 0:01:36.7]} 21... Qd7 {[%clk 0:02:37.3]} 22. Kf2 {[%clk 0:01:34.3]}
22... Rab8 {[%clk 0:02:32.6]} 23. g5 {[%clk 0:01:32.7]} 23... h5 {[%clk
0:02:29]} 24. g4 {[%clk 0:01:24.8]} 24... h4 {[%clk 0:02:19.6]} 25. Rh1 {[%clk
0:01:24.3]} 25... Kf7 {[%clk 0:02:11.7]} 26. Rxh4 {[%clk 0:01:18.1]} 26... Rh8
{[%clk 0:02:12]} 27. Qh1 {[%clk 0:01:17.3]} 27... Rxh4 {[%clk 0:02:11.9]} 28.
Qxh4 {[%clk 0:01:18.2]} 28... Rh8 {[%clk 0:02:12.3]} 29. Qg3 {[%clk 0:01:18.5]}
29... d5 {[%clk 0:02:08.9]} 30. Bd2 {[%clk 0:01:14.8]} 30... d4 {[%clk
0:02:05.7]} 31. f4 {[%clk 0:00:17.3]} 31... dxe3+ {[%clk 0:02:01.5]} 32. Qxe3
{[%clk 0:00:18.2]} 32... exf4 {[%clk 0:01:59]} 33. Qxf4+ {[%clk 0:00:19.2]}
33... Ke7 {[%clk 0:01:56.6]} 34. Kg2 {[%clk 0:00:19.5]} 34... Qxd3 {[%clk
0:01:54]} 35. Be3 {[%clk 0:00:20.1]} 35... Be5 {[%clk 0:01:39.8]} 36. Bxc5+
{[%clk 0:00:19.8]} 36... Ke8 {[%clk 0:01:33.7]} 37. Qe3 {[%clk 0:00:16.1]} 37...
Rh2+ {[%clk 0:01:32.7]} 38. Kg1 {[%clk 0:00:16.3]} 38... Qxe3+ {[%clk
0:01:28.5]} 39. Bxe3 {[%clk 0:00:16.2]} 39... Rxb2 {[%clk 0:01:29.2]} 40. cxb4
{[%clk 0:00:15.1]} 40... Rxb4 {[%clk 0:01:22.8]} 41. Rc1 {[%clk 0:00:14.6]}
41... Nd4 {[%clk 0:01:22.3]} 42. Rc8+ {[%clk 0:00:10.2]} 42... Kd7 {[%clk
0:01:22.6]} 43. Ra8 {[%clk 0:00:10.5]} 43... Rb2 {[%clk 0:01:18.9]} 44. Ra7+
{[%clk 0:00:07.4]} 44... Kc6 {[%clk 0:01:14.6]} 45. Rxa6+ {[%clk 0:00:08.2]}
45... Kb7 {[%clk 0:01:09.3]} 46. Ra5 {[%clk 0:00:09.4]} 46... Nf3+ {[%clk
0:01:09.2]} 47. Kf1 {[%clk 0:00:10.3]} 47... Bg3 {[%clk 0:01:06.8]} 48. Rb5+
{[%clk 0:00:09.4]} 48... Rxb5 {[%clk 0:01:07.1]} 49. axb5 {[%clk 0:00:10.5]}
49... Be5 {[%clk 0:01:01.3]} 50. Ke2 {[%clk 0:00:06.8]} 50... Nh2 {[%clk
0:00:58.6]} 51. Kf2 {[%clk 0:00:05.3]} 51... Nxg4+ {[%clk 0:00:59.1]} 52. Ke2
{[%clk 0:00:06.1]} 52... Nxe3 {[%clk 0:01:01]} 53. Kxe3 {[%clk 0:00:07.2]} 53...
Kb6 {[%clk 0:01:02.7]} 54. Kd3 {[%clk 0:00:07.5]} 54... Kxb5 {[%clk 0:01:03.8]}
55. Ke3 {[%clk 0:00:08.3]} 55... Kc4 {[%clk 0:01:04.8]} 56. Ke2 {[%clk
0:00:07.4]} 56... Kd4 {[%clk 0:01:05.8]} 57. Kf3 {[%clk 0:00:08.5]} 57... Kd3
{[%clk 0:01:06]} 0-1

[Event "*** Qualifier 2: Titled Tuesday 3|2 Blitz"]
[Site "Chess.com"]
[Date "2017.04.11"]
[Round "4"]
[White "justantan"]
[Black "LawrenceTrent"]
[Result "0-1"]
[WhiteElo "2224"]
[BlackElo "2403"]
[TimeControl "180+2"]
[EndTime "13:51:36 PDT"]
[Termination "LawrenceTrent won by resignation"]

1. e4 {[%clk 0:03:02]} 1... g6 {[%clk 0:02:59]} 2. d4 {[%clk 0:03:02.3]} 2...
Bg7 {[%clk 0:03:00.6]} 3. Nc3 {[%clk 0:03:03.1]} 3... a6 {[%clk 0:03:01.7]} 4.
Be3 {[%clk 0:03:04.1]} 4... b5 {[%clk 0:03:02.7]} 5. Qd2 {[%clk 0:03:05.6]} 5...
Bb7 {[%clk 0:03:02.8]} 6. f3 {[%clk 0:03:06.5]} 6... d6 {[%clk 0:03:04.3]} 7.
O-O-O {[%clk 0:03:07.4]} 7... Nd7 {[%clk 0:03:05]} 8. h4 {[%clk 0:03:07.5]} 8...
h6 {[%clk 0:03:04.9]} 9. Kb1 {[%clk 0:03:06.5]} 9... c5 {[%clk 0:03:04.6]} 10.
dxc5 {[%clk 0:03:06.3]} 10... Nxc5 {[%clk 0:03:05.8]} 11. Nxb5 {[%clk
0:02:42.8]} 11... Nxe4 {[%clk 0:02:47.9]} 12. fxe4 {[%clk 0:02:39.5]} 12... axb5
{[%clk 0:02:49.4]} 13. Bxb5+ {[%clk 0:02:40.7]} 13... Kf8 {[%clk 0:02:51.1]} 14.
Bd3 {[%clk 0:02:17.5]} 14... Nf6 {[%clk 0:02:51.7]} 15. Bd4 {[%clk 0:02:16.7]}
15... e5 {[%clk 0:02:43.7]} 16. Bc3 {[%clk 0:02:15.5]} 16... Nxe4 {[%clk
0:02:43.1]} 17. Bxe4 {[%clk 0:02:15.8]} 17... Bxe4 {[%clk 0:02:44.4]} 18. Nf3
{[%clk 0:01:59.6]} 18... Ke7 {[%clk 0:02:02.8]} 19. Rhe1 {[%clk 0:01:47]} 19...
f5 {[%clk 0:01:57.4]} 20. Bb4 {[%clk 0:01:16.9]} 20... Ra6 {[%clk 0:01:51.3]}
21. h5 {[%clk 0:01:12.5]} 21... g5 {[%clk 0:01:39.9]} 22. Qc3 {[%clk 0:01:12.7]}
22... Qc8 {[%clk 0:01:30.5]} 23. Nxe5 {[%clk 0:00:42.8]} 23... Qxc3 {[%clk
0:01:16.5]} 24. Ng6+ {[%clk 0:00:43]} 24... Kd7 {[%clk 0:01:15.7]} 25. Bxc3
{[%clk 0:00:37.9]} 25... Bxc3 {[%clk 0:01:15]} 26. bxc3 {[%clk 0:00:32]} 26...
Rb8+ {[%clk 0:01:13.5]} 27. Kc1 {[%clk 0:00:31.5]} 27... Rxa2 {[%clk 0:01:13]}
28. Ne5+ {[%clk 0:00:32.6]} 28... Kc7 {[%clk 0:01:11]} 29. Nd3 {[%clk
0:00:33.2]} 29... Rb5 {[%clk 0:01:03]} 30. Nb4 {[%clk 0:00:33.6]} 30... Rxb4
{[%clk 0:00:53.1]} 31. cxb4 {[%clk 0:00:33.7]} 31... Rxc2+ {[%clk 0:00:54.4]}
32. Kb1 {[%clk 0:00:34.7]} 32... Rxg2+ {[%clk 0:00:50]} 33. Ka1 {[%clk
0:00:35.2]} 33... d5 {[%clk 0:00:49.1]} 34. Rc1+ {[%clk 0:00:35.3]} 34... Kb6
{[%clk 0:00:50.6]} 35. Rc8 {[%clk 0:00:31.7]} 35... f4 {[%clk 0:00:48.7]} 36.
Rec1 {[%clk 0:00:30.7]} 36... f3 {[%clk 0:00:43.5]} 37. Rb8+ {[%clk 0:00:30.7]}
37... Ka7 {[%clk 0:00:44.5]} 38. Rcc8 {[%clk 0:00:13.5]} 38... d4 {[%clk
0:00:46]} 39. b5 {[%clk 0:00:10.4]} 39... f2 {[%clk 0:00:44.1]} 40. b6+ {[%clk
0:00:11.7]} 40... Ka6 {[%clk 0:00:45.6]} 41. Rf8 {[%clk 0:00:09.9]} 41... Rg1+
{[%clk 0:00:40.3]} 42. Kb2 {[%clk 0:00:11.1]} 42... f1=Q {[%clk 0:00:41.9]} 43.
Rxf1 {[%clk 0:00:12.3]} 43... Rxf1 {[%clk 0:00:43.5]} 44. Rh8 {[%clk 0:00:11.4]}
44... Rf6 {[%clk 0:00:43.5]} 45. Rd8 {[%clk 0:00:12.3]} 45... Rxb6+ {[%clk
0:00:44.2]} 46. Kc1 {[%clk 0:00:13.5]} 46... Rb1+ {[%clk 0:00:41.2]} 47. Kd2
{[%clk 0:00:14.4]} 47... Rb2+ {[%clk 0:00:42.7]} 48. Kc1 {[%clk 0:00:15.5]}
48... Rc2+ {[%clk 0:00:44.1]} 49. Kd1 {[%clk 0:00:16.7]} 49... d3 {[%clk
0:00:44.3]} 50. Rd6+ {[%clk 0:00:17.7]} 50... Kb5 {[%clk 0:00:45.9]} 51. Rf6
{[%clk 0:00:13.7]} 51... g4 {[%clk 0:00:44.8]} 52. Rf4 {[%clk 0:00:12.3]} 52...
Bf3+ {[%clk 0:00:45.4]} 53. Ke1 {[%clk 0:00:13]} 53... d2+ {[%clk 0:00:46.4]}
54. Kf2 {[%clk 0:00:14.3]} 54... d1=Q+ {[%clk 0:00:47.4]} 0-1

[Event "*** Qualifier 2: Titled Tuesday 3|2 Blitz"]
[Site "Chess.com"]
[Date "2017.04.11"]
[Round "4"]
[White "XDPS"]
[Black "Kacparov"]
[Result "0-1"]
[WhiteElo "2562"]
[BlackElo "2589"]
[TimeControl "180+2"]
[EndTime "13:52:17 PDT"]
[Termination "Kacparov won by resignation"]

1. e4 {[%clk 0:02:44.7]} 1... c5 {[%clk 0:03:00]} 2. Nf3 {[%clk 0:02:44.9]} 2...
e6 {[%clk 0:03:01]} 3. d4 {[%clk 0:02:44.4]} 3... cxd4 {[%clk 0:03:02.9]} 4.
Nxd4 {[%clk 0:02:43.8]} 4... a6 {[%clk 0:03:04.3]} 5. c4 {[%clk 0:02:42.8]} 5...
Nf6 {[%clk 0:03:04.6]} 6. Nc3 {[%clk 0:02:43.2]} 6... Qc7 {[%clk 0:03:02.9]} 7.
a3 {[%clk 0:02:43.9]} 7... b6 {[%clk 0:03:04.2]} 8. Be2 {[%clk 0:02:44.4]} 8...
Bb7 {[%clk 0:03:05.6]} 9. f3 {[%clk 0:02:45.9]} 9... d6 {[%clk 0:03:06.8]} 10.
O-O {[%clk 0:02:46.7]} 10... Nbd7 {[%clk 0:03:08.5]} 11. Kh1 {[%clk 0:02:47.9]}
11... Be7 {[%clk 0:03:09.9]} 12. Be3 {[%clk 0:02:49.5]} 12... O-O {[%clk
0:03:11]} 13. Rc1 {[%clk 0:02:51.2]} 13... Rac8 {[%clk 0:03:12.2]} 14. b4 {[%clk
0:02:52.6]} 14... Rfe8 {[%clk 0:03:13.4]} 15. Bg1 {[%clk 0:02:52.7]} 15... Qb8
{[%clk 0:03:14.6]} 16. Rc2 {[%clk 0:02:53.7]} 16... Bd8 {[%clk 0:03:15.9]} 17.
Qb1 {[%clk 0:02:55.1]} 17... Bc7 {[%clk 0:03:17.1]} 18. Rfc1 {[%clk 0:02:56.8]}
18... g5 {[%clk 0:03:03.5]} 19. Nb3 {[%clk 0:02:52.4]} 19... Ne5 {[%clk
0:02:59.7]} 20. c5 {[%clk 0:02:51.9]} 20... dxc5 {[%clk 0:02:58.1]} 21. bxc5
{[%clk 0:02:53.4]} 21... b5 {[%clk 0:02:58.5]} 22. a4 {[%clk 0:02:51.6]} 22...
Bc6 {[%clk 0:02:45.8]} 23. axb5 {[%clk 0:02:51.9]} 23... axb5 {[%clk 0:02:47.7]}
24. Nd4 {[%clk 0:02:51.5]} 24... b4 {[%clk 0:02:43.9]} 25. Ncb5 {[%clk
0:02:50.2]} 25... Bxb5 {[%clk 0:02:40.3]} 26. Bxb5 {[%clk 0:02:47.1]} 26... Red8
{[%clk 0:02:41]} 27. Ba6 {[%clk 0:02:48]} 27... Rxd4 {[%clk 0:02:18.1]} 28. Bxd4
{[%clk 0:02:48.2]} 28... Rd8 {[%clk 0:02:18.9]} 29. Bg1 {[%clk 0:02:47.8]} 29...
g4 {[%clk 0:02:14.3]} 30. Be2 {[%clk 0:02:45.7]} 30... gxf3 {[%clk 0:02:14.6]}
31. gxf3 {[%clk 0:02:47.6]} 31... Nc6 {[%clk 0:02:11.1]} 32. Rd1 {[%clk
0:02:46]} 32... Rxd1 {[%clk 0:01:53.9]} 33. Qxd1 {[%clk 0:02:46.3]} 33... Be5
{[%clk 0:01:55.6]} 34. Bc4 {[%clk 0:02:39]} 34... Kh8 {[%clk 0:01:52.9]} 35. Rd2
{[%clk 0:02:31.8]} 35... Bf4 {[%clk 0:01:30.9]} 36. Rg2 {[%clk 0:02:29.7]} 36...
Ne5 {[%clk 0:01:22.6]} 37. Bb3 {[%clk 0:02:30.1]} 37... Ng6 {[%clk 0:01:16.2]}
38. c6 {[%clk 0:02:28.7]} 38... Qc7 {[%clk 0:01:13.2]} 39. Ba4 {[%clk
0:02:28.4]} 39... Be5 {[%clk 0:01:08.9]} 40. Rd2 {[%clk 0:02:23.8]} 40... Kg7
{[%clk 0:01:07.3]} 41. Qb3 {[%clk 0:02:05.3]} 41... Bc3 {[%clk 0:01:05.4]} 42.
Rd3 {[%clk 0:01:53.4]} 42... Ne5 {[%clk 0:00:57.9]} 43. Rxc3 {[%clk 0:01:54]}
43... bxc3 {[%clk 0:00:59.8]} 44. Qxc3 {[%clk 0:01:55.9]} 44... Ng6 {[%clk
0:00:52.3]} 45. Bd4 {[%clk 0:01:56.4]} 45... e5 {[%clk 0:00:53.3]} 46. Bf2
{[%clk 0:01:51.8]} 46... Nf4 {[%clk 0:00:50.2]} 47. Qc5 {[%clk 0:01:48.5]} 47...
Ne8 {[%clk 0:00:47.3]} 48. Bg3 {[%clk 0:01:46.2]} 48... h6 {[%clk 0:00:41.1]}
49. Bxf4 {[%clk 0:01:44.5]} 49... exf4 {[%clk 0:00:41.9]} 50. Qf5 {[%clk
0:01:45.9]} 50... Nf6 {[%clk 0:00:33.8]} 51. Bb5 {[%clk 0:01:43.6]} 51... Qd6
{[%clk 0:00:32.2]} 52. e5 {[%clk 0:01:38.3]} 52... Qd1+ {[%clk 0:00:33.1]} 53.
Kg2 {[%clk 0:01:38.7]} 53... Nd5 {[%clk 0:00:30.8]} 54. Qe4 {[%clk 0:01:13.5]}
54... Ne3+ {[%clk 0:00:31.6]} 55. Kf2 {[%clk 0:01:12.2]} 55... Qd2+ {[%clk
0:00:17]} 56. Be2 {[%clk 0:01:13]} 56... Nc2 {[%clk 0:00:15.6]} 57. c7 {[%clk
0:00:20.6]} 57... Qe1+ {[%clk 0:00:16]} 58. Kg2 {[%clk 0:00:22.1]} 58... Ne3+
{[%clk 0:00:17]} 59. Kh3 {[%clk 0:00:23.7]} 59... Qxe2 {[%clk 0:00:16.2]} 60.
Qxf4 {[%clk 0:00:25.3]} 60... Qf1+ {[%clk 0:00:14.7]} 61. Kg3 {[%clk 0:00:26]}
61... Qg1+ {[%clk 0:00:15.1]} 62. Kh4 {[%clk 0:00:27.5]} 62... Ng2+ {[%clk
0:00:15.5]} 63. Kg4 {[%clk 0:00:28.1]} 63... Nxf4+ {[%clk 0:00:16.7]} 64. Kxf4
{[%clk 0:00:30]} 64... Qc5 {[%clk 0:00:16.7]} 65. c8=Q {[%clk 0:00:29.6]} 0-1

[Event "*** Qualifier 2: Titled Tuesday 3|2 Blitz"]
[Site "Chess.com"]
[Date "2017.04.11"]
[Round "4"]
[White "Abrito99"]
[Black "SmoothAsAHedgehog"]
[Result "0-1"]
[WhiteElo "2322"]
[BlackElo "2524"]
[TimeControl "180+2"]
[EndTime "13:52:36 PDT"]
[Termination "SmoothAsAHedgehog won on time"]

1. e4 {[%clk 0:03:02]} 1... e5 {[%clk 0:02:58.2]} 2. Nf3 {[%clk 0:03:02.3]} 2...
Nc6 {[%clk 0:02:59.4]} 3. Bc4 {[%clk 0:03:03.9]} 3... Bc5 {[%clk 0:02:59.9]} 4.
d3 {[%clk 0:03:03.9]} 4... Nf6 {[%clk 0:03:01]} 5. O-O {[%clk 0:03:04.8]} 5...
O-O {[%clk 0:03:00.2]} 6. Re1 {[%clk 0:03:00.9]} 6... Bb6 {[%clk 0:03:00.8]} 7.
a4 {[%clk 0:03:01.3]} 7... d6 {[%clk 0:03:01.2]} 8. h3 {[%clk 0:03:00.1]} 8...
h6 {[%clk 0:03:01.6]} 9. c3 {[%clk 0:02:57.8]} 9... a6 {[%clk 0:03:01.7]} 10.
Nbd2 {[%clk 0:02:51]} 10... Ne7 {[%clk 0:03:02.2]} 11. Nf1 {[%clk 0:02:49.4]}
11... Ng6 {[%clk 0:03:03.4]} 12. Ng3 {[%clk 0:02:51]} 12... Nh7 {[%clk
0:03:03.5]} 13. d4 {[%clk 0:02:49]} 13... Qf6 {[%clk 0:03:03.8]} 14. Nh5 {[%clk
0:02:43.9]} 14... Qe7 {[%clk 0:03:04.4]} 15. Be3 {[%clk 0:02:40.4]} 15... Ng5
{[%clk 0:03:04.3]} 16. Nxg5 {[%clk 0:02:26]} 16... hxg5 {[%clk 0:03:04.7]} 17.
Ng3 {[%clk 0:02:19.4]} 17... Nf4 {[%clk 0:03:05]} 18. Nf5 {[%clk 0:02:19.3]}
18... Qf6 {[%clk 0:03:05.9]} 19. dxe5 {[%clk 0:02:11.8]} 19... dxe5 {[%clk
0:03:05.9]} 20. Bxb6 {[%clk 0:02:12.4]} 20... cxb6 {[%clk 0:02:48.8]} 21. Ne3
{[%clk 0:01:51.1]} 21... Be6 {[%clk 0:02:47.6]} 22. Ng4 {[%clk 0:01:41.3]} 22...
Bxg4 {[%clk 0:02:45.7]} 23. Qxg4 {[%clk 0:01:40.6]} 23... Rfd8 {[%clk
0:02:39.3]} 24. Rad1 {[%clk 0:01:40.6]} 24... Qe7 {[%clk 0:02:19.9]} 25. g3
{[%clk 0:01:34.5]} 25... Ng6 {[%clk 0:02:20.1]} 26. Qf5 {[%clk 0:01:33.9]} 26...
Nf8 {[%clk 0:02:18.1]} 27. Rd5 {[%clk 0:01:25.2]} 27... Rxd5 {[%clk 0:01:38.8]}
28. exd5 {[%clk 0:01:25.6]} 28... Re8 {[%clk 0:01:37]} 29. d6 {[%clk 0:01:05.8]}
29... Qf6 {[%clk 0:01:37.7]} 30. d7 {[%clk 0:00:47.9]} 30... Rd8 {[%clk
0:01:36.2]} 31. Rxe5 {[%clk 0:00:49.5]} 31... Qxf5 {[%clk 0:01:15.9]} 32. Rxf5
{[%clk 0:00:49.6]} 32... Rxd7 {[%clk 0:01:17.2]} 33. Rxg5 {[%clk 0:00:50.4]}
33... Rd2 {[%clk 0:00:56.5]} 34. b3 {[%clk 0:00:33.3]} 34... Rc2 {[%clk
0:00:46]} 35. Re5 {[%clk 0:00:34]} 35... Rxc3 {[%clk 0:00:22.7]} 36. Re7 {[%clk
0:00:34.8]} 36... Ne6 {[%clk 0:00:20.6]} 37. Rxb7 {[%clk 0:00:34.6]} 37... b5
{[%clk 0:00:13]} 38. axb5 {[%clk 0:00:34.7]} 38... axb5 {[%clk 0:00:14.6]} 39.
Rxb5 {[%clk 0:00:30]} 39... Nd4 {[%clk 0:00:12.3]} 40. Rb7 {[%clk 0:00:30.8]}
40... Nf3+ {[%clk 0:00:09.8]} 41. Kg2 {[%clk 0:00:30.7]} 41... Ne5 {[%clk
0:00:11.7]} 42. Bd5 {[%clk 0:00:32]} 42... Kf8 {[%clk 0:00:11.1]} 43. f4 {[%clk
0:00:22.7]} 43... Rc2+ {[%clk 0:00:11.7]} 44. Kf1 {[%clk 0:00:24.2]} 44... Nd3
{[%clk 0:00:08.9]} 45. Rxf7+ {[%clk 0:00:22.5]} 45... Ke8 {[%clk 0:00:10.4]} 46.
Rxg7 {[%clk 0:00:19.2]} 46... Rf2+ {[%clk 0:00:06.9]} 47. Kg1 {[%clk 0:00:20.6]}
47... Rd2 {[%clk 0:00:08.8]} 48. Bc4 {[%clk 0:00:20.2]} 48... Ne1 {[%clk
0:00:07.2]} 49. Kf1 {[%clk 0:00:19.8]} 49... Nf3 {[%clk 0:00:07.9]} 50. h4
{[%clk 0:00:19.9]} 50... Nh2+ {[%clk 0:00:08.7]} 51. Ke1 {[%clk 0:00:17.7]}
51... Nf3+ {[%clk 0:00:09.8]} 52. Kf1 {[%clk 0:00:18.9]} 52... Nh2+ {[%clk
0:00:10.1]} 53. Ke1 {[%clk 0:00:19.8]} 53... Nf3+ {[%clk 0:00:11.6]} 54. Kf1
{[%clk 0:00:20.4]} 54... Nh2+ {[%clk 0:00:12.8]} 55. Ke1 {[%clk 0:00:21.4]}
55... Nf3+ {[%clk 0:00:13.7]} 0-1

[Event "*** Qualifier 2: Titled Tuesday 3|2 Blitz"]
[Site "Chess.com"]
[Date "2017.04.11"]
[Round "4"]
[White "johnathan113"]
[Black "Fandorine"]
[Result "0-1"]
[WhiteElo "2433"]
[BlackElo "2675"]
[TimeControl "180+2"]
[EndTime "13:52:43 PDT"]
[Termination "Fandorine won on time"]

1. e4 {[%clk 0:02:58.5]} 1... c6 {[%clk 0:03:01.2]} 2. Nc3 {[%clk 0:02:58.4]}
2... d5 {[%clk 0:03:02.2]} 3. Qf3 {[%clk 0:02:59.9]} 3... d4 {[%clk 0:02:55.6]}
4. Bc4 {[%clk 0:03:00.2]} 4... Nf6 {[%clk 0:02:47.9]} 5. e5 {[%clk 0:03:00.1]}
5... dxc3 {[%clk 0:02:43.4]} 6. exf6 {[%clk 0:03:00.7]} 6... exf6 {[%clk
0:02:39.4]} 7. dxc3 {[%clk 0:03:00.4]} 7... Bd6 {[%clk 0:02:36.1]} 8. Be3 {[%clk
0:02:49.1]} 8... Nd7 {[%clk 0:02:34.5]} 9. O-O-O {[%clk 0:02:43.2]} 9... Ne5
{[%clk 0:02:33.9]} 10. Qe4 {[%clk 0:02:43.8]} 10... Qe7 {[%clk 0:02:15.6]} 11.
Bb3 {[%clk 0:02:28.5]} 11... O-O {[%clk 0:02:07.3]} 12. Nf3 {[%clk 0:02:15.4]}
12... Ng4 {[%clk 0:01:18.3]} 13. Qxe7 {[%clk 0:02:08.5]} 13... Bxe7 {[%clk
0:01:20.2]} 14. Rhe1 {[%clk 0:02:08]} 14... Nxe3 {[%clk 0:01:18.7]} 15. Rxe3
{[%clk 0:02:04]} 15... Bc5 {[%clk 0:01:19.6]} 16. Nd4 {[%clk 0:02:02.4]} 16...
Bd7 {[%clk 0:01:13.1]} 17. Bc4 {[%clk 0:01:49.9]} 17... Rfe8 {[%clk 0:01:11.4]}
18. Rxe8+ {[%clk 0:01:45.8]} 18... Rxe8 {[%clk 0:01:13.3]} 19. Nb3 {[%clk
0:01:25.6]} 19... Bg4 {[%clk 0:01:12]} 20. Nxc5 {[%clk 0:01:21.6]} 20... Bxd1
{[%clk 0:01:13.2]} 21. Kxd1 {[%clk 0:01:23.5]} 21... b6 {[%clk 0:01:11.1]} 22.
Nb3 {[%clk 0:01:24.1]} 22... f5 {[%clk 0:01:11.6]} 23. Nd4 {[%clk 0:01:22.7]}
23... Rd8 {[%clk 0:00:54.2]} 24. Ke2 {[%clk 0:01:23.3]} 24... Re8+ {[%clk
0:00:34.3]} 25. Kf3 {[%clk 0:01:24]} 25... g6 {[%clk 0:00:35.7]} 26. Nxc6 {[%clk
0:01:24.8]} 26... a5 {[%clk 0:00:37.2]} 27. Nd4 {[%clk 0:01:17]} 27... Kg7
{[%clk 0:00:35.7]} 28. a4 {[%clk 0:01:15.7]} 28... h5 {[%clk 0:00:35]} 29. h4
{[%clk 0:01:13.5]} 29... Re1 {[%clk 0:00:31]} 30. g3 {[%clk 0:01:09.5]} 30...
Kf6 {[%clk 0:00:23.5]} 31. Nb5 {[%clk 0:01:07.7]} 31... Ke7 {[%clk 0:00:18.2]}
32. Nc7 {[%clk 0:01:02.6]} 32... Kd6 {[%clk 0:00:11.2]} 33. Nd5 {[%clk
0:00:57.9]} 33... Kc5 {[%clk 0:00:09.1]} 34. b3 {[%clk 0:00:52.8]} 34... b5
{[%clk 0:00:09.5]} 35. axb5 {[%clk 0:00:51]} 35... a4 {[%clk 0:00:11]} 36. b6
{[%clk 0:00:29.4]} 36... a3 {[%clk 0:00:12]} 37. b7 {[%clk 0:00:29.5]} 37... Re8
{[%clk 0:00:13.5]} 38. Nb4 {[%clk 0:00:21.4]} 38... Kb6 {[%clk 0:00:10.5]} 39.
Bxf7 {[%clk 0:00:21.5]} 39... Rd8 {[%clk 0:00:07]} 40. Bd5 {[%clk 0:00:13.2]}
40... Kc7 {[%clk 0:00:08.4]} 41. Kf4 {[%clk 0:00:07.5]} 41... a2 {[%clk
0:00:06.8]} 42. Nxa2 {[%clk 0:00:06]} 42... Rxd5 {[%clk 0:00:08.3]} 43. Nb4
{[%clk 0:00:06.9]} 43... Rd2 {[%clk 0:00:09.8]} 44. Kg5 {[%clk 0:00:04]} 44...
Rxf2 {[%clk 0:00:10.9]} 45. Kxg6 {[%clk 0:00:05.9]} 45... Rf3 {[%clk 0:00:12.3]}
46. Kxh5 {[%clk 0:00:07.1]} 46... Rxg3 {[%clk 0:00:12.5]} 47. Nc6 {[%clk
0:00:07.3]} 47... Kxb7 {[%clk 0:00:12.4]} 48. Nd4 {[%clk 0:00:07.6]} 48... f4
{[%clk 0:00:13.7]} 49. Kh6 {[%clk 0:00:08.3]} 49... f3 {[%clk 0:00:09.6]} 50. c4
{[%clk 0:00:08.3]} 50... f2 {[%clk 0:00:10.3]} 0-1